Cogmind - Beta 15 @@@ ROGUE MODE // 2025.08.18 @ 19:38:38 Player: Mogwok Wargfriend Result: Destroyed by EY-FWF(R) with Subdweller Machine Gun Performance ------------- Evolutions (0) 0 Regions Visited (2) 400 Robots Destroyed (23) 115 Value Destroyed (366) 366 Prototype IDs (0) 0 Alien Tech Used (0) 0 Bonus (0) 0 TOTAL SCORE: 881 Bonus ------- None Cogmind --------- Core Integrity 0/250 Matter 259/300 Energy 250/250 System Corruption 0% Temperature Cool (0) Movement Rolling (140) Ox4 Location -10/Subcaves Parts ------- > --- POWER (1) -------- Ion Engine > --- PROPULSION (2) --- Light Treads Wheel > --- UTILITY (2) ------ Heat Sink High-capacity Storage Unit > --- WEAPON (2) ------- Beam Cannon > --- INVENTORY (20) --- Ion Engine Wheel Compact Wheel Compact Wheel Heat Sink High-capacity Storage Unit High-capacity Battery (250) High-capacity Matter Pod (200) Sensor Array Signal Interpreter Authchip [Processor] Medium Laser Medium Laser Small Laser Small Laser Battle Cannon Datajack Mining Laser Hammer Peak State ------------ > --- POWER ------------ Ion Engine > --- PROPULSION ------- Wheel Wheel > --- UTILITY ---------- High-capacity Storage Unit Sensor Array > --- WEAPON ----------- Assault Rifle Hammer > --- INVENTORY -------- Ion Engine Light Treads Wheel Compact Wheel Compact Wheel Heat Sink Heat Sink High-capacity Storage Unit High-capacity Battery High-capacity Matter Pod Signal Interpreter Medium Laser Medium Laser Small Laser Small Laser Small Laser Beam Cannon Light Assault Rifle Datajack Mining Laser [Rating: 9] Favorites ----------- Power Ion Engine Engine Ion Engine Propulsion Wheel Treads Light Treads Wheel Wheel Utility High-capacity Storage Unit Device Sensor Array Storage High-capacity Storage Unit Weapon Assault Rifle Energy Gun Medium Laser Energy Cannon Beam Cannon Ballistic Gun Assault Rifle Special Weapon Mining Laser Impact Weapon Hammer Build | -11 -10 -10 ------- Run | Yrd Mat Sub Slots Evolved . | . . . Power . | . . . Propulsion . | . . . Utility . | . . . Weapon . | . . . Parts Attached 23 | 8 12 3 Power 3 | 1 2 . Engine 3 | 1 2 . Core . | . . . Reactor . | . . . Propulsion 5 | 2 3 . Treads 2 | 1 1 . Leg . | . . . Wheel 3 | 1 2 . Hover . | . . . Flight . | . . . Utility 6 | 2 4 . Device 4 | 1 3 . Storage 2 | 1 1 . Processor . | . . . Hackware . | . . . Protection . | . . . Artifact . | . . . Weapon 9 | 3 3 3 Energy Gun 4 | 1 2 1 Energy Cannon 1 | . . 1 Ballistic Gun 2 | 2 . . Ballistic Cannon . | . . . Launcher . | . . . Special Weapon 1 | . . 1 Impact Weapon 1 | . 1 . Slashing Weapon . | . . . Piercing Weapon . | . . . Special Melee Weapon . | . . . Unidentified Prototypes . | . . . Parts Lost 5 | . 3 2 Power . | . . . Propulsion 2 | . 1 1 Utility 1 | . 1 . Weapon 2 | . 1 1 Highest Loss Streak 3 | . 3 1 To Critical Strikes . | . . . Average Backups 14 | 4 13 19 Power 1 | 1 1 1 Propulsion 3 | 2 3 3 Utility 4 | . 3 7 Weapon 5 | 1 4 7 Tool/Special . | . . . Unused Backups 17 | 1 2 14 Power 2 | . 1 1 Propulsion 4 | 1 . 3 Utility 7 | . 1 6 Weapon 3 | . . 3 Tool/Special 1 | . . 1 Average Slot Usage (%) 99 | . 98 100 Engine 14 | . 14 14 Treads 5 | . 6 . Wheel 22 | . 20 27 Device 13 | . 13 14 Storage 14 | . 14 14 Energy Gun 12 | . 13 9 Ballistic Gun 13 | . 13 14 Peak Build Rating 9 | 7 9 9 Average Rating 7 | 5 7 8 On Entrance 5 | . 7 9 Naked Turns . | . . . Heaviest Build 50 | 15 50 50 Greatest Support 20 | 10 20 20 Greatest Overweight (x) 4 | 1 4 4 Average Overweight (x) 1 | . 2 2 Largest Inventory Capacity 20 | 8 20 20 Average Capacity 16 | 7 16 20 Most Carried 20 | 8 20 20 Average Carried 14 | 5 13 19 Final Capacity 20 | 8 20 20 Final Carried 20 | 8 20 19 Class Distribution -------------------- 66% | Mutant 33% | Scavenger-Mutant Dominant Class ---------------- Mutant | -10/Materials Mutant | -10/Subcaves Resources | -11 -10 -10 ----------- Run | Yrd Mat Sub Matter Collected 1001 | 404 559 38 Remotely . | . . . Salvage Created 805 | 149 618 38 Parts 52 | 14 36 2 Haulers Intercepted 2 | . 2 . Recyclers Shooed 5 | . 5 . Parts Field Recycled . | . . . Retrieved Matter . | . . . Parts Self-Destructed 6 | . . 6 Prevented . | . . . Kills | -11 -10 -10 ------- Run | Yrd Mat Sub Combat Hostiles Destroyed 8 | . 7 1 Guns 7 | . 7 . Cannons 1 | . . 1 Classes Destroyed 8 | 3 4 1 Worker 3 | 2 1 . Tunneler 3 | 2 1 . Hauler 2 | . 2 . Recycler 4 | 1 3 . Watcher 3 | . 3 . Swarmer 2 | . 2 . Grunt 5 | . 5 . Subdweller 1 | . . 1 Best Kill Streak 5 | 2 5 1 Combat Bots Only 5 | . 5 1 Max Kills in Single Turn 1 | 1 1 1 Gunslinging . | . . . Exploded . | . . . Melee . | . . . Uniques/NPCs Destroyed . | . . . Combat | -11 -10 -10 -------- Run | Yrd Mat Sub Hostile Shots Fired 101 | . 63 38 Missed 31 | . 19 12 Hits 70 | . 44 26 Projectile 70 | . 44 26 Critical Strikes 2 | . 1 1 Damage Taken 1096 | . 522 574 Core 258 | . 75 183 Absorbed by Shields . | . . . Regen/Repaired (Parts) 86 | . 86 . Core Remaining (%) 100 | 100 . . Volleys Fired 119 | 8 78 33 Largest 2 | 2 2 2 Hottest 100 | 70 70 100 Shots Fired 216 | 16 154 46 Gun 190 | 16 154 20 Cannon 7 | . . 7 Launcher . | . . . Special 19 | . . 19 Kinetic 99 | 8 78 13 Thermal 117 | 8 76 33 Explosive . | . . . Electromagnetic . | . . . Robot Hit Streak 19 | 4 7 19 Robot Miss Streak 9 | 1 9 1 Penetration Max . | . . . Secondary Targets 1 | . 1 . Max Gunslinging Chain 1 | . 1 . Shots Hit Robots 115 | 9 81 25 Core Hits 42 | 6 31 5 Critical Kills . | . . . Critical Parts Destroyed . | . . . Critical Strikes 5 | . 3 2 Burn 5 | . 3 2 Melee Attacks 1 | . 1 . Impact 1 | . 1 . Slashing . | . . . Piercing . | . . . Sneak Attacks . | . . . Combat Hostiles . | . . . Follow-up Attacks . | . . . Damage Inflicted 1521 | 115 1048 358 Guns 1398 | 115 1048 235 Cannons 123 | . . 123 Explosions . | . . . Melee . | . . . Ramming . | . . . Kinetic 706 | 65 494 147 Thermal 815 | 50 554 211 Explosive . | . . . Electromagnetic . | . . . Impact . | . . . Slashing . | . . . Piercing . | . . . Highest Corruption . | . . . Average Corruption . | . . . Corruption Purged . | . . . Corruption Blocked . | . . . Overload Shots . | . . . Overflow Damage . | . . . Projectiles . | . . . Explosions . | . . . Melee . | . . . Knockbacks . | . . . Impact . | . . . Kinetic . | . . . Secondary . | . . . Self-Inflicted Damage . | . . . Shots . | . . . Rammed . | . . . Targets Rammed . | . . . Kicked . | . . . Crushed . | . . . Highest Temperature 239 | 27 239 . Average Temperature 59 | 12 66 . Received Heat Transfer 267 | . 231 36 Siege Activations . | . . . Martial Activations . | . . . Shielding Activations . | . . . Robots Disrupted . | . . . Combat Hostiles . | . . . Robots Corrupted . | . . . Combat Hostiles . | . . . Parts Fried . | . . . Impact Corruptions . | . . . Robots Melted . | . . . Combat Hostiles . | . . . Parts Melted 3 | . 3 . Heat Transferred 2569 | 148 1755 666 Parts Sabotaged . | . . . Parts Stolen . | . . . Parts Stripped . | . . . Power Chain Reactions . | . . . Alert | -11 -10 -10 ------- Run | Yrd Mat Sub Maximum Alert Level . | . . . Low Security (%) 100 | 100 100 . Level 1 . | . . . Level 2 . | . . . Level 3 . | . . . Level 4 . | . . . Level 5 . | . . . High Security . | . . . Max Security . | . . . Peak Influence 100 | 10 100 . Initial . | . . . Average 11 | 2 12 . Influence Increases 318 | 25 293 . Destroy 0b10 Robot/C 140 | . 140 . Destroy 0b10 Robot/NC 75 | 25 50 . Destroy Leader 40 | . 40 . Successful Hack 48 | . 48 . Disable Machine 15 | . 15 . Influence Decreases 318 | 25 293 . Time Decay 307 | 25 282 . Lost Part 11 | . 11 . Squads Dispatched 2 | . 2 . Investigation . | . . . Extermination . | . . . Reinforcement 2 | . 2 . Assault . | . . . Garrison . | . . . Intercept . | . . . Searches Triggered . | . . . Construction Impeded . | . . . Haulers Reinforced . | . . . Active Scanning Responses . | . . . Cargo Convoy Interrupts . | . . . Stealth | -11 -10 -10 --------- Run | Yrd Mat Sub Distress Signals 2 | . 2 . Communications Jammed . | . . . Distress Signals . | . . . Times Spotted 28 | . 24 4 Peak Tracking Total 7 | . 7 3 Tactical Retreats . | . . . Traps | -11 -10 -10 ------- Run | Yrd Mat Sub Traps Triggered . | . . . Indirectly . | . . . Trap Hack Attempts . | . . . Triggered . | . . . Disarmed . | . . . Reprogrammed . | . . . Reused . | . . . Traps Extracted . | . . . Installed . | . . . Triggered . | . . . Machines | -11 -10 -10 ---------- Run | Yrd Mat Sub Machines Disabled 1 | . 1 . Max in Single Turn 1 | . 1 . Machines Repaired . | . . . Machines Dismantled . | . . . Machines Sabotaged . | . . . Overloaded Fab Kills . | . . . Hacking | -11 -10 -10 --------- Run | Yrd Mat Sub Machines Accessed 10 | . 10 . Terminals 7 | . 7 . Fabricators . | . . . Repair Stations 1 | . 1 . Recycling Units 2 | . 2 . Scanalyzers . | . . . Garrison Access . | . . . Total Hacks 41 | . 41 . Successful 30 | . 30 . Failed 10 | . 10 . Catastrophic 3 | . 3 . Database Lockouts 1 | . 1 . Manual 33 | . 33 . Terminals 27 | . 27 . Fabricators . | . . . Repair Stations 2 | . 2 . Recycling Units 12 | . 12 . Scanalyzers . | . . . Garrison Access . | . . . Terminal Hacks 9 | . 9 . Robot Analysis 3 | . 3 . Terminal Index 1 | . 1 . Repair Station Index 1 | . 1 . Locate Traps 2 | . 2 . Recall Reinforcements 1 | . 1 . Registered Components 1 | . 1 . Fabricator Hacks . | . . . Repair Station Hacks 2 | . 2 . Scan Component 1 | . 1 . Repair 1 | . 1 . Recycling Unit Hacks 5 | . 5 . Report Inventory 3 | . 3 . Retrieve Components 2 | . 2 . Scanalyzer . | . . . Garrison Access Hacks . | . . . Unauthorized Hacks 14 | . 14 . Terminals 10 | . 10 . Assimilate 1 | . 1 . Botnet 6 | . 6 . Operators 3 | . 3 . Fabricators . | . . . Repair Stations . | . . . Recycling Units 4 | . 4 . Reject 2 | . 2 . Mask 2 | . 2 . Scanalyzers . | . . . Garrison Access . | . . . Data Cores Recovered . | . . . Used . | . . . Hacking Detections 8 | . 8 . Full Trace Events . | . . . Feedback Events . | . . . Feedback Blocked . | . . . Robot Schematics Acquired . | . . . Robots Built . | . . . Authchips . | . . . Time . | . . . Total Robot Build Rating . | . . . Part Schematics Acquired . | . . . Parts Built . | . . . Authchips . | . . . Time . | . . . Total Part Build Rating . | . . . Parts Repaired 1 | . 1 . Time 26 | . 26 . Parts Recycled . | . . . Recycled Matter . | . . . Retrieved Matter . | . . . Retrieved Components 7 | . 7 . Parts Scanalyzed . | . . . Part Schematics Acquired . | . . . Parts Damaged . | . . . Bothacking | -11 -10 -10 ------------ Run | Yrd Mat Sub Used RIF Installer . | . . . Robots Hacked . | . . . Non-combat . | . . . Combat . | . . . Robot Hacks Applied . | . . . Relay Couplers Released . | . . . Fabnet Peak Effective % . | . . . Robots Rewired . | . . . Allies Hacked . | . . . Hacks Repelled . | . . . Allies | -11 -10 -10 -------- Run | Yrd Mat Sub Total Allies 1 | . 1 . Largest Group 1 | . 1 1 Highest-Rated Group 10 | . 10 10 Highest-Rated Ally 10 | . 10 10 Total Orders . | . . . Ally Attacks . | . . . Total Damage . | . . . Kills . | . . . Allies Corrupted 1 | . . 1 Allies Melted . | . . . Intel | -11 -10 -10 ------- Run | Yrd Mat Sub Active Infowar (turns) 1310 | 58 834 418 Sensors 818 | . 400 418 Seismic 492 | 58 434 . Robot Analysis Total 3 | . 3 . Derelict Logs Recovered 1 | . . 1 Drone Launches . | . . . Drone Recoveries . | . . . Exploration | -11 -10 -10 ------------- Run | Yrd Mat Sub Turns Passed 2087 | 132 1513 442 Spaces Moved 1413 | 95 1073 245 Core 15 | 15 . . Treads . | . . . Legs . | . . . Wheels 1398 | 80 1073 245 Hover . | . . . Flight . | . . . Fastest Speed 50 | 50 95 110 Average Speed 108 | 91 110 110 Slowest Speed 140 | 100 140 140 Overloaded Moves . | . . . Propulsion Burnouts . | . . . Robots Hopped . | . . . Potential Cave-ins . | . . . Cave-ins Triggered . | . . . Exploration Rate (%) 40 | 5 99 17 Regions Visited 2 Branch Regions 1 Pre-discovered Areas 1 | . . 1 Known Exits Taken . | . . . Unknown Exits Taken 2 | 1 1 . Scrap Searched 1 | . . 1 Spaces Dug . | . . . Terrain Destroyed . | . . . Melee . | . . . Projectile . | . . . AOE . | . . . Terrain Rammed . | . . . Walls Destroyed . | . . . Machines Disabled . | . . . Actions | -11 -10 -10 --------- Run | Yrd Mat Sub Total 1701 | 121 1249 331 Wait 104 | . 58 46 Move 1411 | 94 1072 245 Hop . | . . . Pick Up 25 | 9 15 1 Fast Attach 12 | 7 5 . Attach 5 | 1 3 1 Detach 4 | 1 3 . Swap 10 | . 6 4 Drop 10 | 1 8 1 Fire 119 | 8 78 33 Melee 1 | . 1 . Ram . | . . . Kick . | . . . Crush . | . . . Escape Stasis . | . . . Rewire . | . . . Trap . | . . . Miscellaneous . | . . . Route ------- -11/Scrapyard -10/Materials (discovered 6 exits: [*Mat x3] / [*Min x2] / [*Sub]) -10/Subcaves (discovered 1 exit: [Scr]) History --------- Turn | Location | Event 60 | -11/Scrapyard | Discovered new exit (range 14) 133 | -11/Scrapyard | Entered Materials 134 | -10/Materials | Met a group of wandering Federalists 312 | -10/Materials | Discovered new exit (range 6) 316 | -10/Materials | Build established: Mutant 449 | -10/Materials | Discovered new exit (range 7) 618 | -10/Materials | Discovered new exit (range 9) 795 | -10/Materials | Central database locked down 853 | -10/Materials | Lost 3 parts (1n1u1w) 998 | -10/Materials | Discovered new exit (range 5) 1123 | -10/Materials | Repaired Assault Rifle 1203 | -10/Materials | Build established: Scavenger-Mutant 1281 | -10/Materials | Discovered new exit (range 8) 1437 | -10/Materials | Discovered new exit (range 7) 1646 | -10/Materials | Entered Subcaves 1646 | -10/Subcaves | Accompanied by 1 ally 1647 | -10/Subcaves | Continued accompanying wandering Federalists (6) 1647 | -10/Subcaves | Approached by a straggling Scientist 1685 | -10/Subcaves | Shifting Twisted Machinery released Battle Cannon 1685 | -10/Subcaves | Shifting Twisted Machinery released Spk. Treads 1778 | -10/Subcaves | Build established: Mutant 1866 | -10/Subcaves | Learned location of Zion (-6) 1873 | -10/Subcaves | A swath of the cavern ceiling suddenly collapsed 2016 | -10/Subcaves | Ambushed by Subdwellers from Twisted Machinery 2061 | -10/Subcaves | Core integrity fell below 50% 2066 | -10/Subcaves | Core integrity fell below 20% 2088 | -10/Subcaves | Destroyed by EY-FWF(R) with Subdweller Machine Gun Last Messages --------------- here" 01809_ A derelict emerges from the shadows: "Hey wait up! Finally some friendlies. We were scared out of our wits watching Subs pass by here several times." 01821_ Searching scrap... 01821_ Found Humpback. 01821_ Found 46 Matter. 5B-B3V(c): "I think it's somewhere northeast of here" 01866_ Acquired derelict log, extracted data. World map updated: -6/Zion. A swath of the cavern ceiling suddenly collapses. 02042_ EY-FWF(R) suffers critical hit (Burn). 02050_ Wheel destroyed. 02054_ EY-FWF(R) suffers critical hit (Burn). 02069_ ZR-AR6(R) destroyed. 02082_ Assault Rifle destroyed. 02086_ Acquired 38 matter. Map ----- +----------------------------------------------------+ | ?????????????????????????????????????????????????? | | ?????????????????????????????????????????????????? | | ?????????????????????????????????????????????????? | | ?????????????????????????????????????????????????? | | ?????????????????????????????????????????????????? | | ?????????????????????????????????????????????????? | | ??????????????????????"#?????????????????????????? | | ?????????????????????? "#????????????????????????? | | ?????????????????????? ##???????????????????????? | | ?????????????????????? ###?????????????????????? | | ?????????????????????? ??????????????????????? | | ?????????????????????? ??????????????????????? | | ?????????????????????# ???????????????????????? | | ???????????????####?# ????????????????????????? | | ???????????#### ## ????????????????????????? | | ??????????? ## #?? ???????????? "???????????? | | ???"??????## ???# #????###???? #???????????? | | #?"?????### #????# #???# ##?? #???????????? | | # ?????### #?????# #??? ## ????????????? | | ?????## #??????# #??# #???????????? | | #?????## #####???## #??? ??????????????? | | ###?##### ######### #### #??????????????????? | | ### ## # ## #???????????????????? | | # # ##???????????????????? | | # # ##????????????????????? | | #### ## #####@*#?????????????????????? | | #####?#### ##?## !#?????????????????????? | | ##?????#### "### R##?????????????????????? | | #??????# " ##R##??????????????????????? | | ##" ##??????????????????????? | | ##??# #??????????????????????? | | #### ### #????" " #??????????????????????? | | ????##?##??????#"" # ##??????????????????????? | | ???????????????###########???????????????????????? | | ?????????????????????????????????????????????????? | | ?????????????????????????????????????????????????? | | ?????????????????????????????????????????????????? | | ?????????????????????????????????????????????????? | | ?????????????????????????????????????????????????? | | ?????????????????????????????????????????????????? | | ?????????????????????????????????????????????????? | | ?????????????????????????????????????????????????? | | ?????????????????????????????????????????????????? | | ?????????????????????????????????????????????????? | | ?????????????????????????????????????????????????? | | ?????????????????????????????????????????????????? | | ?????????????????????????????????????????????????? | | ?????????????????????????????????????????????????? | | | | | +----------------------------------------------------+ Best States ------------- Heat Dissipation 35 Energy Generation 10 Energy Capacity 250 Matter Stores 300 Matter Capacity 300 Sight Range 16 Robot Scan Range 14 Terrain Scan Density 10 Evasion (%) 44 Authchip Count 1 Item Schematics ----------------- None Robot Schematics ------------------ None Fabricated ------------ Nothing Repaired ---------- Assault Rifle | 14% | -10/Materials Alien Tech Used ----------------- None Achievements -------------- None Challenges ------------ None Game ------ Seed PointImpulseMicrothruster Manual? 0 Play Time 00:15:22 Cumulative 319.7 hours Start 2025.08.18 @ 17:32:47 End 2025.08.18 @ 19:38:38 Sessions 3 Manual Loads 0 Difficulty Rogue Special Mode None Game No. 277 Rogue 277 Adventurer 0 Explorer 0 Win Type - Total 2 Types 2/0/0/0/0/0/0/0/0/0 Lore% 72 Gallery% 65 Achievement% 53 Wizard Run 0 Options --------- Layout 2 ASCII 1 Keyboard 1 Movement Numpad Keybinds 0 Fullscreen 2 Font 32/TamsynBold Map View 50x44 Zoom Use 0% Tactical HUD 1 Map Filters NONE Filters NONE Steam 1 RUN: ab7889da-2661-4fdc-91bc-8d4156aa6e5d